{"text_format":"3","workbook":"xlsx","n_sheets":2,"sheets":["Rastreador RSVP","Resumen de RSVP"],"not_rendered":{"charts":2,"defined_names":22},"read":"whole","date_system":"1900"}

{"sheet":"Rastreador RSVP","index":0,"n_rows":15,"n_cols":15,"rows_kept":15,"merged":[[0,3,0,4],[0,5,0,7]]}
[{"$nulls":5},"RESUMEN DE RSVP"]
[null,"FECHA DE LA BODA",null,"seguimiento de invitaciones de boda"]
[null,{"$f":"TODAY()+283","v":"2023-05-20"},null,"NOMBRE DEL INVITADO","¿SE ENVÍO?","CONFIRMACIÓN DE ASISTENCIA","GRUPO","INVITADO","RELACIÓN","DIRECCIÓN","CIUDAD","PROVINCIA","CÓDIGO POSTAL","TELÉFONO","CORREO ELECTRÓNICO DE CONTACTO"]
[null,"DÍAS RESTANTES",null,"Nombre 1","Sí","Sí",1,"Futuro cónyuge 1","Hermano","Dirección","Ciudad","Provincia","CÓDIGO POSTAL","Teléfono","alguien@ejemplo.com"]
[null,{"$f":"DíasRestantes","v":283},null,"Nombre 2","Sí","No",3,"Futuro cónyuge 1","Amigo","Dirección","Ciudad","Provincia","CÓDIGO POSTAL","Teléfono","alguien@ejemplo.com"]
[null,"ASISTENTES",null,"Nombre 3","Sí","Sí",1,"otros","Amigo","Dirección","Ciudad","Provincia","CÓDIGO POSTAL","Teléfono","alguien@ejemplo.com"]
[null,{"$f":"AsistentesTotales","v":12},null,"Nombre 4","Sí","No",2,"Futuro cónyuge 2","Amigo","Dirección","Ciudad","Provincia","CÓDIGO POSTAL","Teléfono","alguien@ejemplo.com"]
[null,"NO ASISTENTES",null,"Nombre 5","Sí","Sí",2,"Futuro cónyuge 2","Amigo","Dirección","Ciudad","Provincia","CÓDIGO POSTAL","Teléfono","alguien@ejemplo.com"]
[null,{"$f":"TotalQueNoAsistirá","v":6},null,"Nombre 6","Sí","tentativo",null,"otros","Amigo","Dirección","Ciudad","Provincia","CÓDIGO POSTAL","Teléfono","alguien@ejemplo.com"]
[null,"PENDIENTES",null,"Nombre 7","Sí","Sí",2,"Futuro cónyuge 2","Amigo","Dirección","Ciudad","Provincia","CÓDIGO POSTAL","Teléfono","alguien@ejemplo.com"]
[null,{"$f":"RSVPPendiente","v":1},null,"Nombre 8","Sí","No",1,"otros","Amigo","Dirección","Ciudad","Provincia","CÓDIGO POSTAL","Teléfono","alguien@ejemplo.com"]
[{"$nulls":3},"Nombre 9","Sí","Sí",4,"Futuro cónyuge 1","Amigo","Dirección","Ciudad","Provincia","CÓDIGO POSTAL","Teléfono","alguien@ejemplo.com"]
[{"$nulls":3},"Nombre 10","Sí","Sí",2,"Futuro cónyuge 1","Amigo","Dirección","Ciudad","Provincia","CÓDIGO POSTAL","Teléfono","alguien@ejemplo.com"]
[{"$nulls":3},"Nombre 11","Sí",null,null,"Futuro cónyuge 2","Hermano","Dirección","Ciudad","Provincia","CÓDIGO POSTAL","Teléfono","alguien@ejemplo.com"]
[{"$nulls":3},"TOTALES:",{"$f":"COUNTIF('Rastreador RSVP'!$E$4:$E$14,\"Sí\")","v":11},{"$f":"COUNTA('Rastreador RSVP'!$F$4:$F$14)","v":10},{"$f":"SUBTOTAL(109,tblInvitados[GRUPO])","v":18}]

{"sheet":"Resumen de RSVP","index":1,"n_rows":11,"n_cols":15,"rows_kept":11,"merged":[[0,3,0,4],[0,5,0,8],[2,3,6,3],[2,4,6,4],[7,3,11,3],[7,4,11,4]]}
[{"$nulls":3},"RASTREADOR RSVP"]
[null,"FECHA DE LA BODA",null,"resumen de rsvp",{"$nulls":10},"notas"]
[null,{"$f":"FechaDeLaBoda","v":"2023-05-20"},null,"SÍ","Gráfico de barras agrupadas que muestra los tipos de invitados que sí han confirmado la asistencia está en la celda."]
[null,"DÍAS RESTANTES",{"$nulls":3},"OTROS",{"$f":"IFERROR(SUMIFS(tblInvitados[GRUPO],tblInvitados[INVITADO],\"=otros\",tblInvitados[CONFIRMACIÓN DE ASISTENCIA],\"Sí\"),0)","v":1},{"$f":"tblInvitados[[#Totals],[¿SE ENVÍO?]]","v":11}]
[null,{"$f":"DíasRestantes","v":283},{"$nulls":3},"FUTURO CÓNYUGE 2",{"$f":"IFERROR(SUMIFS(tblInvitados[GRUPO],tblInvitados[INVITADO],\"=Futuro cónyuge 2\",tblInvitados[CONFIRMACIÓN DE ASISTENCIA],\"Sí\"),0)","v":4},{"$f":"tblInvitados[[#Totals],[¿SE ENVÍO?]]","v":11}]
[null,"ASISTENTES",{"$nulls":3},"FUTURO CÓNYUGE 1",{"$f":"IFERROR(SUMIFS(tblInvitados[GRUPO],tblInvitados[INVITADO],\"=Futuro cónyuge 1\",tblInvitados[CONFIRMACIÓN DE ASISTENCIA],\"Sí\"),0)","v":7},{"$f":"tblInvitados[[#Totals],[¿SE ENVÍO?]]","v":11}]
[null,{"$f":"AsistentesTotales","v":12}]
[null,"NO ASISTENTES",null,"NO","Gráfico de barras agrupadas que muestra los tipos de invitados que no han confirmado la asistencia está en la celda."]
[null,{"$f":"TotalQueNoAsistirá","v":6},{"$nulls":3},"OTROS",{"$f":"IFERROR(SUMIFS(tblInvitados[GRUPO],tblInvitados[INVITADO],\"=otros\",tblInvitados[CONFIRMACIÓN DE ASISTENCIA],\"No\"),0)","v":1},{"$f":"tblInvitados[[#Totals],[¿SE ENVÍO?]]","v":11}]
[null,"PENDIENTES",{"$nulls":3},"FUTURO CÓNYUGE 2",{"$f":"IFERROR(SUMIFS(tblInvitados[GRUPO],tblInvitados[INVITADO],\"=Futuro cónyuge 2\",tblInvitados[CONFIRMACIÓN DE ASISTENCIA],\"No\"),0)","v":2},{"$f":"tblInvitados[[#Totals],[¿SE ENVÍO?]]","v":11}]
[null,{"$f":"RSVPPendiente","v":1},{"$nulls":3},"FUTURO CÓNYUGE 1",{"$f":"IFERROR(SUMIFS(tblInvitados[GRUPO],tblInvitados[INVITADO],\"=Futuro cónyuge 1\",tblInvitados[CONFIRMACIÓN DE ASISTENCIA],\"No\"),0)","v":3},{"$f":"tblInvitados[[#Totals],[¿SE ENVÍO?]]","v":11}]